Cogmind - Beta 10.2 @@@ ROGUE MODE // 2021.05.18 @ 17:31:09 Player: silmarilion6 Result: Destroyed by H-55 Commando with Gauss Rifle Performance ------------- Evolutions (2) 1000 Regions Visited (4) 800 Robots Destroyed (36) 180 Value Destroyed (952) 952 Prototype IDs (2) 40 Alien Tech Used (0) 0 Bonus (0) 0 TOTAL SCORE: 2972 Bonus ------- None Cogmind --------- Core Integrity 0/550 Matter 270/300 Energy 259/265 System Corruption 0% Temperature Cool (237) Movement Walking (150) Ox1 Location -8/Materials Parts ------- > --- POWER (1) -------- Improved Ion Engine > --- PROPULSION (4) --- Aluminum Leg Aluminum Leg Aluminum Leg > --- UTILITY (4) ------ High-capacity Storage Unit Improved Sensor Array Signal Interpreter Improved Targeting Computer > --- WEAPON (2) ------- Beam Rifle > --- INVENTORY (12) --- Ion Engine Aluminum Leg Carbon-fiber Leg Improved Targeting Computer Improved ECM Suite Hacking Suite Peak State ------------ > --- POWER ------------ Improved Ion Engine > --- PROPULSION ------- Light Treads Light Treads Light Treads Carbon-fiber Leg > --- UTILITY ---------- High-capacity Storage Unit Signal Interpreter Improved Targeting Computer Improved Targeting Computer > --- WEAPON ----------- Beam Rifle Minigun > --- INVENTORY -------- Ion Engine Ion Engine Improved Ion Engine Aluminum Leg Improved Targeting Computer Improved ECM Suite Hacking Suite Beam Rifle Heavy Particle Cannon Heavy Assault Rifle [Rating: 21] Favorites ----------- Power Ion Engine Engine Ion Engine Propulsion Aluminum Leg Treads Light Treads Leg Aluminum Leg Utility Small Storage Unit Device Sensor Array Storage Small Storage Unit Processor Improved Targeting Computer Weapon Assault Rifle Energy Gun Medium Laser Energy Cannon Heavy Particle Cannon Ballistic Gun Assault Rifle Impact Weapon Flail Build | -11 -10 -9 -9 -8 ------- Run | Scr Mat Mat Min Mat Slots Evolved 4 | . . 2 . 2 Power . | . . . . . Propulsion 2 | . . 1 . 1 Utility 2 | . . 1 . 1 Weapon . | . . . . . Parts Attached 64 | 7 8 11 10 28 Power 12 | 1 3 2 2 4 Engine 12 | 1 3 2 2 4 Core . | . . . . . Reactor . | . . . . . Propulsion 18 | 2 2 1 5 8 Treads 3 | . . . . 3 Leg 15 | 2 2 1 5 5 Wheel . | . . . . . Hover . | . . . . . Flight . | . . . . . Utility 17 | 2 . 6 3 6 Device 5 | . . 1 3 1 Storage 9 | 2 . 5 . 2 Processor 3 | . . . . 3 Hackware . | . . . . . Protection . | . . . . . Artifact . | . . . . . Weapon 17 | 2 3 2 . 10 Energy Gun 6 | 1 2 . . 3 Energy Cannon 1 | . . . . 1 Ballistic Gun 9 | 1 1 2 . 5 Ballistic Cannon . | . . . . . Launcher . | . . . . . Special Weapon . | . . . . . Impact Weapon 1 | . . . . 1 Slashing Weapon . | . . . . . Piercing Weapon . | . . . . . Special Melee Weapon . | . . . . . Unidentified Prototypes 2 | . . 2 . . Parts Lost 22 | . 1 . 9 12 Power 2 | . . . 1 1 Propulsion 8 | . . . 4 4 Utility 2 | . . . 2 . Weapon 10 | . 1 . 2 7 Highest Loss Streak 9 | . 1 . 9 6 Average Slot Usage (%) 83 | . 100 100 85 58 Engine 9 | . 14 11 9 6 Treads 4 | . . . . 13 Leg 22 | . 28 33 27 9 Device 3 | . . 11 9 . Storage 17 | . 28 22 20 4 Processor 3 | . . . . 10 Energy Gun 6 | . 5 14 . 4 Ballistic Gun 13 | . 22 7 17 7 Naked Turns 35 | . . . 20 15 Heaviest Build 49 | 15 16 44 44 49 Greatest Support 60 | 20 20 30 30 60 Greatest Overweight (x) 15 | . . 1 3 15 Average Overweight (x) . | . . . . . Largest Inventory Capacity 16 | 8 8 16 16 12 Average Capacity 9 | 6 8 11 15 6 Most Carried 16 | 6 8 16 16 10 Average Carried 8 | 3 7 9 14 5 Final Capacity 16 | 8 8 16 4 12 Final Carried 16 | 5 8 16 4 6 Class Distribution -------------------- 58% | Scavenger-Mutant 41% | Mutant Dominant Class ---------------- Mutant | -10/Materials Scavenger-Mutant | -9/Materials Scavenger-Mutant | -9/Mines Scavenger-Mutant | -8/Materials Resources | -11 -10 -9 -9 -8 ----------- Run | Scr Mat Mat Min Mat Matter Collected 1084 | 276 244 80 150 334 Remotely . | . . . . . Salvage Created 1339 | 87 428 148 158 518 Parts 97 | 3 31 13 8 42 Haulers Intercepted 2 | . . 1 . 1 Recyclers Shooed 8 | . 5 1 1 1 Parts Field Recycled . | . . . . . Retrieved Matter . | . . . . . Parts Self-Destructed . | . . . . . Prevented . | . . . . . Kills | -11 -10 -9 -9 -8 ------- Run | Scr Mat Mat Min Mat Combat Hostiles Destroyed 27 | . 11 3 2 11 Melee 2 | . . . . 2 Guns 24 | . 11 3 2 8 Cannons 1 | . . . . 1 Classes Destroyed 7 | 1 2 3 . 1 Builder 2 | . . . . 2 Hauler 2 | . . 1 . 1 Recycler 3 | 1 1 . 1 . Watcher 2 | . . 1 . 1 Swarmer 8 | . 3 2 . 3 Grunt 16 | . 8 . 2 6 Sentry 3 | . . 1 . 2 Best Kill Streak 4 | 1 3 2 2 4 Combat Bots Only 3 | . 3 2 2 3 Max Kills in Single Turn 1 | 1 1 1 1 1 Gunslinging . | . . . . . Exploded . | . . . . . Melee 1 | . . . . 1 Uniques/NPCs Destroyed . | . . . . . Combat | -11 -10 -9 -9 -8 -------- Run | Scr Mat Mat Min Mat Damage Taken 3593 | . 534 65 1145 1849 Core 926 | . 104 9 253 560 Absorbed by Shields . | . . . . . Core Remaining (%) 64 | 100 58 . 34 . Volleys Fired 139 | 2 48 16 6 67 Largest 2 | 2 2 2 2 2 Hottest 131 | 60 60 90 46 131 Shots Fired 226 | 4 95 32 12 83 Gun 215 | 4 95 32 12 72 Cannon 11 | . . . . 11 Launcher . | . . . . . Special . | . . . . . Kinetic 146 | 2 83 4 12 45 Thermal 68 | . 2 28 . 38 Explosive . | . . . . . Electromagnetic 12 | 2 10 . . . Robot Hit Streak 11 | 4 8 7 5 11 Robot Miss Streak 4 | . 4 2 1 3 Penetration Max . | . . . . . Secondary Targets 2 | . 2 . . . Max Gunslinging Chain 1 | . 1 . . . Shots Hit Robots 153 | 4 56 20 9 64 Core Hits 68 | 2 24 9 5 28 Critical Hits 2 | . 2 . . . Critical Kills 1 | . 1 . . . Critical Parts Destroyed 1 | . 1 . . . Melee Attacks 12 | . . . . 12 Impact 12 | . . . . 12 Slashing . | . . . . . Piercing . | . . . . . Sneak Attacks . | . . . . . Combat Hostiles . | . . . . . Follow-up Attacks . | . . . . . Damage Inflicted 2016 | 50 589 230 116 1031 Guns 1752 | 50 589 230 116 767 Cannons 75 | . . . . 75 Explosions . | . . . . . Melee 189 | . . . . 189 Ramming . | . . . . . Kinetic 1269 | 24 532 30 116 567 Thermal 486 | . 11 200 . 275 Explosive . | . . . . . Electromagnetic 72 | 26 46 . . . Impact 189 | . . . . 189 Slashing . | . . . . . Piercing . | . . . . . Highest Corruption 4 | . . 2 4 . Average Corruption 2 | . . 2 2 . Corruption Purged . | . . . . . Effects 7 | . . 1 6 . Message Errors 1 | . . . 1 . Matter Fused 1 | . . . 1 . Heat Flow Errors 2 | . . 1 1 . Data Loss (minor) 3 | . . . 3 . Overload Shots . | . . . . . Overflow Damage . | . . . . . Projectiles . | . . . . . Explosions . | . . . . . Melee . | . . . . . Knockbacks 2 | . . . . 2 Impact 2 | . . . . 2 Kinetic . | . . . . . Secondary . | . . . . . Self-Inflicted Damage . | . . . . . Shots . | . . . . . Rammed . | . . . . . Targets Rammed . | . . . . . Kicked . | . . . . . Crushed . | . . . . . Highest Temperature 237 | . 12 165 170 237 Average Temperature 37 | . 6 43 57 39 Received Heat Transfer 1189 | . 201 9 259 720 Siege Activations . | . . . . . Robots Corrupted . | . . . . . Combat Hostiles . | . . . . . Parts Fried . | . . . . . Impact Corruptions . | . . . . . Robots Melted . | . . . . . Combat Hostiles . | . . . . . Parts Melted 1 | . . 1 . . Heat Transferred 1211 | . 25 557 . 629 Parts Sabotaged . | . . . . . Parts Stolen . | . . . . . Parts Stripped . | . . . . . Power Chain Reactions . | . . . . . Missiles Intercepted . | . . . . . Alert | -11 -10 -9 -9 -8 ------- Run | Scr Mat Mat Min Mat Peak Influence 231 | 5 207 219 140 231 Initial 85 | . 3 53 85 19 Average 96 | 1 113 95 106 89 Maximum Alert Level 1 | . 1 1 . 1 Low Security (%) 95 | 100 97 94 100 92 Level 1 4 | . 2 5 . 7 Level 2 . | . . . . . Level 3 . | . . . . . Level 4 . | . . . . . Level 5 . | . . . . . High Security . | . . . . . Max Security . | . . . . . Squads Dispatched 5 | . 3 2 . . Investigation 2 | . 1 1 . . Extermination . | . . . . . Reinforcement 3 | . 2 1 . . Assault . | . . . . . Garrison . | . . . . . Intercept . | . . . . . Construction Impeded . | . . . . . Haulers Reinforced . | . . . . . Stealth | -11 -10 -9 -9 -8 --------- Run | Scr Mat Mat Min Mat Distress Signals 5 | . 2 1 . 2 Communications Jammed . | . . . . . Distress Signals . | . . . . . Times Spotted 72 | . 20 7 27 18 Peak Tracking Total 14 | . 6 4 14 5 Tactical Retreats 2 | . . 1 1 . Traps | -11 -10 -9 -9 -8 ------- Run | Scr Mat Mat Min Mat Traps Triggered 2 | . . 2 . . Indirectly . | . . . . . Trap Hack Attempts . | . . . . . Triggered . | . . . . . Disarmed . | . . . . . Reprogrammed . | . . . . . Reused . | . . . . . Traps Extracted . | . . . . . Installed . | . . . . . Triggered . | . . . . . Machines | -11 -10 -9 -9 -8 ---------- Run | Scr Mat Mat Min Mat Machines Disabled 1 | . 1 . . . Max in Single Turn 1 | . 1 . . . Machines Sabotaged . | . . . . . Garrisons Compromised . | . . . . . Overloaded Fab Kills . | . . . . . Fab Network Shutdowns . | . . . . . Hacking | -11 -10 -9 -9 -8 --------- Run | Scr Mat Mat Min Mat Machines Accessed 3 | . 1 2 . . Terminals 3 | . 1 2 . . Fabricators . | . . . . . Repair Stations . | . . . . . Recycling Units . | . . . . . Scanalyzers . | . . . . . Garrison Access . | . . . . . Total Hacks 12 | . 5 7 . . Successful 2 | . 1 1 . . Failed 10 | . 4 6 . . Catastrophic . | . . . . . Database Lockouts . | . . . . . Manual . | . . . . . Terminals 12 | . 5 7 . . Fabricators . | . . . . . Repair Stations . | . . . . . Recycling Units . | . . . . . Scanalyzers . | . . . . . Garrison Access . | . . . . . Terminal Hacks 2 | . 1 1 . . Record 1 | . . 1 . . Robot Analysis 1 | . 1 . . . Fabricator Hacks . | . . . . . Repair Station Hacks . | . . . . . Recycling Unit Hacks . | . . . . . Scanalyzer . | . . . . . Garrison Access Hacks . | . . . . . Unauthorized Hacks . | . . . . . Terminals . | . . . . . Fabricators . | . . . . . Repair Stations . | . . . . . Recycling Units . | . . . . . Scanalyzers . | . . . . . Garrison Access . | . . . . . Data Cores Recovered . | . . . . . Used . | . . . . . Hacking Detections 3 | . 1 2 . . Full Trace Events 3 | . 1 2 . . Feedback Events . | . . . . . Feedback Blocked . | . . . . . Robot Schematics Acquired . | . . . . . Robots Built . | . . . . . Matter . | . . . . . Time . | . . . . . Total Robot Build Rating . | . . . . . Part Schematics Acquired . | . . . . . Parts Built . | . . . . . Matter . | . . . . . Time . | . . . . . Total Part Build Rating . | . . . . . Parts Repaired . | . . . . . Time . | . . . . . Parts Recycled . | . . . . . Recycled Matter . | . . . . . Retrieved Matter . | . . . . . Retrieved Components . | . . . . . Parts Scanalyzed . | . . . . . Part Schematics Acquired . | . . . . . Parts Damaged . | . . . . . Bothacking | -11 -10 -9 -9 -8 ------------ Run | Scr Mat Mat Min Mat Used RIF Installer . | . . . . . Robots Hacked . | . . . . . Non-combat . | . . . . . Combat . | . . . . . Robot Hacks Applied . | . . . . . Relay Couplers Released . | . . . . . Robots Rewired . | . . . . . Allies Hacked . | . . . . . Hacks Repelled . | . . . . . Allies | -11 -10 -9 -9 -8 -------- Run | Scr Mat Mat Min Mat Total Allies . | . . . . . Largest Group . | . . . . . Highest-Rated Group . | . . . . . Highest-Rated Ally . | . . . . . Total Orders . | . . . . . Ally Attacks . | . . . . . Total Damage . | . . . . . Kills . | . . . . . Allies Corrupted . | . . . . . Allies Melted . | . . . . . Intel | -11 -10 -9 -9 -8 ------- Run | Scr Mat Mat Min Mat Robot Analysis Total 1 | . 1 . . . Derelict Logs Recovered 1 | . . . 1 . Drone Launches . | . . . . . Drone Recoveries . | . . . . . Exploration | -11 -10 -9 -9 -8 ------------- Run | Scr Mat Mat Min Mat Turns Passed 1951 | 74 542 396 287 652 Spaces Moved 1079 | 47 277 244 171 340 Core 203 | 9 . . 41 153 Treads 175 | . . . . 175 Legs 701 | 38 277 244 130 12 Wheels . | . . . . . Hover . | . . . . . Flight . | . . . . . Fastest Speed 50 | 50 120 120 50 50 Average Speed 121 | 106 120 130 129 115 Slowest Speed 800 | 120 120 150 210 800 Overloaded Moves . | . . . . . Propulsion Burnouts . | . . . . . Robots Hopped . | . . . . . Cave-ins Triggered . | . . . . . Exploration Rate (%) 27 | 4 43 25 42 22 Regions Visited 4 Branch Regions 1 Pre-discovered Areas . | . . . . . Known Exits Taken . | . . . . . Unknown Exits Taken 4 | 1 1 1 1 . Scrap Searched . | . . . . . Spaces Dug . | . . . . . Terrain Destroyed 6 | . . . . 6 Melee . | . . . . . Projectile 6 | . . . . 6 AOE . | . . . . . Terrain Rammed . | . . . . . Walls Destroyed . | . . . . . Machines Disabled . | . . . . . Actions | -11 -10 -9 -9 -8 --------- Run | Scr Mat Mat Min Mat Total 1484 | 66 402 289 227 500 Wait 102 | . 47 . 31 24 Move 1075 | 46 276 243 170 340 Hop . | . . . . . Pick Up 63 | 11 12 14 3 23 Fast Attach 6 | 1 . . . 5 Attach 33 | 6 2 3 4 18 Detach 2 | . . . 1 1 Swap 25 | . 6 8 6 5 Drop 27 | . 11 5 6 5 Fire 139 | 2 48 16 6 67 Melee 12 | . . . . 12 Ram . | . . . . . Kick . | . . . . . Crush . | . . . . . Escape Stasis . | . . . . . Rewire . | . . . . . Trap . | . . . . . Miscellaneous . | . . . . . Route ------- -11/Scrapyard -10/Materials -9/Materials -9/Mines (discovered 2 exits: [*Mat x2]) -8/Materials (discovered 1 exit: [*Sto]) History --------- Turn | Location | Event 6 | -11/Scrapyard | Discovered new exit (range 16) 75 | -11/Scrapyard | Entered Materials 312 | -10/Materials | Build established: Mutant 570 | -10/Materials | Discovered new exit (range 15) 617 | -10/Materials | Entered another Materials area 617 | -9/Materials | Evolved 2 slots: Propulsion x1, Utility x1 799 | -9/Materials | Build established: Scavenger-Mutant 996 | -9/Materials | Discovered new exit (range 11) 1013 | -9/Materials | Entered Mines 1100 | -9/Mines | Discovered new exit (range 8) 1217 | -9/Mines | Assembled infested the area 1222 | -9/Mines | Assisted by a Guerilla fighting off Assembled 1280 | -9/Mines | Released all parts (3) 1284 | -9/Mines | Core integrity fell below 50% 1289 | -9/Mines | Learned Materials trap positions 1290 | -9/Mines | Discovered new exit (range 12) 1292 | -9/Mines | Received a Rocket Launcher from a helpful Derelict 1300 | -9/Mines | Entered Materials 1300 | -8/Materials | Evolved 2 slots: Propulsion x1, Utility x1 1301 | -8/Materials | Loaded intel: 16 trap records 1304 | -8/Materials | Lost 9 parts (1p4n2u2w) 1447 | -8/Materials | Core integrity fell below 50% 1486 | -8/Materials | Lost 3 parts (3w) 1616 | -8/Materials | Discovered new exit (range 16) 1854 | -8/Materials | Core integrity fell below 20% 1903 | -8/Materials | Lost 6 parts (1p3n2w) 1952 | -8/Materials | Destroyed by H-55 Commando with Gauss Rifle Last Messages --------------- 01900_ K-01 Serf collects debris. 01901_ Dropped Ion Engine. 01901_ K-01 Serf collects debris. 01906_ Acquired Carbon-fiber Leg. 01908_ Acquired 22 matter. 01908_ K-01 Serf collects debris. 01913_ Acquired Aluminum Leg. 01915_ Acquired 40 matter. 01921_ Acquired Imp. Sensor Array. 01922_ Discarded Imp. Targeting Computer. 01928_ Hvy. Assault Rifle destroyed. 01932_ Penetrated by Slug. 01932_ Carbon-fiber Leg destroyed. 01937_ Penetrated by Slug. 01937_ U-05 Engineer builds a Wall. 01940_ Penetrated by Slug. 01941_ U-05 Engineer destroyed. 01943_ Penetrated by Slug. 01944_ W-25 Informer sends out distress signal. 01949_ Hvy. Particle Cannon destroyed. Map ----- +----------------------------------------------------+ | ????????????????????????????????????? | | < ????????????????????????????????????? | | ????????????????????????????????????? | | ####### ????????????????????????????????????? | | ##???????????????????????????????????????????????? | | #????????????????????????????????????????????????? | | #????????????????????????????????????????????????? | | #????????????????????????????????????????????????? | | #????????????????????????????????????????????????? | | #???????????????????????? ?????????????????????? | | ##?????#######??????????? k#????????????????????? | | ####### ##########?? #????????????????????? | | ! # #?# t #????????????????????? | | !% # #?# w#????????????????????? | | [ # #?# ##???????????????????? | | ####### # #?# ;????????????????????? | | ##?????## ## #?# ;????????????????????? | | ????????# ## #?# #????????????????????? | | ?######## ## #?# #????????????????????? | | ?# ! + ## #?# +????????????????????? | | ?# [# ## ### #????????????????????? | | ?# """ # ######+#####=h! #????????????????????? | | ?# "R # #### =###;%= #????????????????????? | | ?# """ # =%! [! #????????????????????? | | ?# # ! *!%* #????????????????????? | | ?######## != @ #????????????????????? | | ????????######## ##### ##????????????????????? | | ???????????????## ######+####??????????????????? | | ????????????????# # #??????????????????? | | ????????????????# # #??????????????????? | | ????????????????+ + #??????????????????? | | ????????????????# # #??????????????????? | | ????????????????# ###########??????????????????? | | ????????????????# #????????????????????????????? | | ????????????????# ?????????????^^????????????? | | ????????????????# ????????????^^????????????? | | ????????????????# ???????????^^????????????? | | ????????????????#########????????????????????????? | | ?????????????????????????????????????????????????? | | ?????????????????????????????????????????????????? | | ?????????????????????????????????????????????????? | | ?????????????????????????????????????????????????? | | ?????????????????????????????????????????????????? | | | | | | | | | | | | | | | +----------------------------------------------------+ Best States ------------- Heat Dissipation 31 Energy Generation 12 Energy Capacity 265 Matter Stores 300 Matter Capacity 300 Sight Range 16 Robot Scan Range 13 Terrain Scan Density 10 Heat Shielding 75 Evasion (%) 50 Targeting Accuracy 12 Recoil Reduction 3 Item Schematics ----------------- None Robot Schematics ------------------ None Fabricated ------------ Nothing Alien Tech Used ----------------- None Achievements -------------- None Challenges ------------ None Game ------ Seed ScatterRocketRifle Manual? 0 Play Time 00:37:59 Cumulative 9.5 hours Start 2021.05.18 @ 16:52:07 End 2021.05.18 @ 17:31:09 Sessions 1 Manual Loads 0 Difficulty Rogue Special Mode None Game No. 12 Rogue 12 Adventurer 0 Explorer 0 Win Type - Total 0 Types 0/0/0/0/0/0/0/0/0 Lore% 13 Gallery% 13 Achievement% 11 Wizard Run 0 Options --------- ASCII 0 Keyboard 0 Movement Mouse Keybinds 0 Fullscreen 1 Font 18/CogNarrow Map View 76x50 Tactical HUD 1 Map Filters NONE Filters NONE Steam 1 RUN: 603fd3b7-becd-41a9-a2cb-3bbe844f4088